bitfinex/quotes_ETHUSD_20240710
["timestamp","ask_amount","ask_price","bid_price","bid_amount"]
[1720620586078,3.20392,3121.2,3120.4,22.64006175]
[1720620586285,3.20388,3121.3,3120.4,25.84472175]
[1720620586583,3.20389,3121.2,3120.5,0.55]
[1720620586738,0.08010349,3122.0,3120.4,22.64006175]
[1720620586739,3.20422,3120.9,3120.4,22.64006175]
[1720620587994,3.2041,3121.0,3120.5,2.81400618]
[1720620588155,3.20395,3121.2,3120.5,2.81400618]
[1720620589265,3.20374,3121.4,3120.5,2.81400618]
[1720620589466,3.20379,3121.3,3120.5,2.81400618]
[1720620589683,3.20389,3121.2,3120.5,2.81400618]
[1720620589979,3.20389,3121.2,3120.6,2.54540679]
[1720620590184,3.20389,3121.2,3120.7,0.55]
[1720620590863,3.20377,3121.4,3120.7,0.55]
[1720620591366,3.20383,3121.3,3120.7,0.55]
[1720620591766,6.40769,3121.3,3120.7,0.55]
[1720620591970,3.20383,3121.3,3120.7,0.55]
[1720620592170,3.20391,3121.2,3120.7,0.55]
[1720620593588,3.2041,3121.0,3120.4,22.64006175]
[1720620593883,3.2041,3121.0,3120.5,0.55]
[1720620595388,3.2041,3121.0,3120.5,2.86900618]
[1720620595689,0.50269966,3121.1,3120.5,2.86900618]
[1720620596074,0.50269966,3121.1,3120.7,3.20432]
[1720620596406,0.50269966,3121.1,3120.9,5.66814]
[1720620596703,6.4067,3121.8,3120.9,5.66814]
[1720620596886,0.50261602,3121.5,3121.0,1.116814]
[1720620597500,3.70622602,3121.5,3120.9,2.464]
[1720620598180,3.20438,3120.8,3120.5,19.83840509]
[1720620598386,3.20438,3120.8,3120.4,19.83840509]
[1720620598701,3.20448,3120.7,3120.4,19.83840509]
[1720620599760,3.20461,3120.5,3120.4,19.83840509]
[1720620599958,6.40922,3120.5,3120.4,19.83840509]
[1720620600294,3.20426,3120.9,3120.4,19.83840509]
[1720620600456,3.20443,3120.7,3120.4,19.83840509]
[1720620600657,6.40853,3120.9,3120.4,21.8222456]
[1720620600920,0.50261602,3121.5,3120.5,2.52128972]
[1720620601207,0.50261602,3121.5,3120.6,3.0]
[1720620601208,3.70620602,3121.5,3120.6,3.0]
[1720620601364,3.20333,3121.8,3120.7,3.79949649]
[1720620601569,3.20333,3121.8,3120.8,3.72508688]
[1720620601785,3.20333,3121.8,3120.9,0.55]
[1720620601965,3.20334,3121.8,3120.9,0.55]
[1720620602274,0.50262316,3122.0,3120.9,0.55]
[1720620602275,3.20362,3121.5,3120.9,0.55]
[1720620603275,3.20347,3121.7,3120.9,0.55]
[1720620603486,3.20361,3121.5,3121.0,0.42299497]
[1720620603892,3.20401,3121.1,3120.6,3.0]
[1720620604122,3.20419,3121.0,3120.5,5.4761]
[1720620604483,3.20419,3121.0,3120.5,2.4761]
[1720620604907,3.2041,3121.0,3120.5,2.4761]
[1720620605088,3.2041,3121.0,3120.6,0.94100566]
[1720620605292,3.20375,3121.4,3120.6,0.94100566]
[1720620605529,3.20351,3121.6,3120.7,3.20431]
[1720620605819,3.2036,3121.5,3120.6,0.94100566]
[1720620606021,3.2036,3121.5,3120.7,0.55]
[1720620606334,3.2036,3121.5,3120.8,0.79450596]
[1720620606516,3.2036,3121.5,3120.9,0.55]
[1720620607336,0.08010074,3121.4,3120.5,2.4761]
[1720620607622,3.20321,3121.9,3120.5,2.4761]
[1720620607623,3.20426,3120.9,3120.5,2.4761]
[1720620607778,3.20426,3120.9,3120.4,6.93395661]
[1720620607974,3.20459,3120.6,3120.4,6.93395661]
[1720620608180,3.20461,3120.5,3120.1,19.83840509]
[1720620609295,3.20459,3120.6,3119.8,21.43700662]
[1720620609296,3.20513,3120.0,3119.8,21.43700662]
[1720620610020,3.20513,3120.0,3119.8,19.83840509]
[1720620610021,3.20523,3119.9,3119.8,19.83840509]
[1720620610223,3.20523,3119.9,3119.1,2.2941]
[1720620610224,3.20584,3119.3,3119.2,19.83840509]
[1720620610432,3.20584,3119.3,3119.2,19.89861062]
[1720620610921,6.41168,3119.3,3119.2,19.89861062]
[1720620611940,3.0,3120.2,3119.2,21.37369444]
[1720620612083,3.2055,3119.7,3119.2,19.89861062]
[1720620612285,3.0,3120.5,3119.2,19.89861062]
[1720620612637,6.40958,3120.4,3119.4,2.4819]
[1720620612823,3.20482,3120.3,3119.5,0.0985726]
[1720620613121,3.20478,3120.4,3119.6,0.55]
[1720620613326,3.20492,3120.2,3119.6,0.55]
[1720620613532,3.20492,3120.2,3119.7,0.05322602]
[1720620613890,3.20478,3120.4,3119.7,0.05322602]
[1720620614092,3.20482,3120.3,3119.7,0.05322602]
[1720620615108,3.20478,3120.4,3119.7,0.05322602]
[1720620615109,3.20454,3120.6,3119.7,0.05322602]
[1720620615292,3.20434,3120.8,3119.7,3.25858602]
[1720620615491,3.20446,3120.7,3119.8,3.63894718]
[1720620615698,3.20451,3120.6,3119.8,3.63894718]
[1720620616132,3.20434,3120.8,3119.8,0.55]
[1720620616133,3.20482,3120.3,3119.8,0.55]
[1720620616337,3.20482,3120.3,3119.7,0.55]
[1720620616629,3.20482,3120.3,3119.6,27.08088576]
[1720620616630,3.20543,3119.7,3119.6,6.93395661]
[1720620616818,3.20543,3119.7,3119.5,19.83840509]
[1720620617145,3.20442,3120.7,3119.5,21.8222456]
[1720620617306,3.20463,3120.5,3119.5,6.93395661]
[1720620618387,3.20522,3120.0,3119.5,6.93395661]
[1720620618617,3.20522,3120.0,3119.2,6.93395661]
[1720620618817,6.41045,3120.0,3119.3,3.55]
[1720620619047,3.20544,3119.7,3119.2,6.93395661]
[1720620620172,3.20575,3119.4,3119.2,6.93395661]
[1720620620329,3.20579,3119.4,3119.2,6.93395661]
[1720620620879,3.20564,3119.5,3119.2,6.93395661]
[1720620621530,3.20551,3119.7,3119.2,9.61119278]
[1720620621741,3.20551,3119.7,3119.2,2.67723617]
[1720620623135,3.20507,3120.1,3119.2,2.67723617]
[1720620623336,3.20483,3120.3,3119.3,0.55]
[1720620623567,3.20442,3120.7,3119.3,6.75576]
[1720620623568,3.20492,3120.2,3119.3,6.75576]
[1720620623770,3.20492,3120.2,3119.4,0.94329962]
[1720620624095,3.20503,3120.1,3119.5,0.55]
[1720620624363,6.41039,3120.0,3119.4,0.94329962]
[1720620624568,3.20518,3120.0,3119.3,3.0]
[1720620624869,3.28479782,3120.5,3119.2,2.67723617]
[1720620625034,6.41106,3119.7,3119.1,19.83840509]
[1720620625668,6.99666,3120.5,3119.1,19.83840509]
[1720620625669,6.99664,3120.5,3119.1,19.83840509]
[1720620625855,3.20528,3119.9,3119.2,0.55]
[1720620626441,3.2051,3120.1,3119.3,0.04525064]
[1720620626943,3.20487,3120.3,3119.2,3.75594]
[1720620626944,3.20492,3120.2,3119.2,3.75594]
[1720620627267,3.20492,3120.2,3119.5,2.2957]
[1720620627453,3.20519,3120.0,3119.5,2.2957]
[1720620627826,3.20524,3119.9,3119.5,2.2957]
[1720620628134,3.20465,3120.5,3119.3,19.83840509]
[1720620628135,3.20564,3119.6,3119.3,19.83840509]
[1720620628549,3.20572,3119.5,3119.3,19.83840509]
[1720620628754,3.20574,3119.4,3119.3,19.83840509]
[1720620629260,6.41144,3119.5,3119.3,19.83840509]
[1720620629557,3.20572,3119.5,3119.3,19.83840509]
[1720620630261,3.20572,3119.5,3119.3,21.8222456]
[1720620630834,3.20572,3119.5,3119.3,19.83840509]
[1720620631154,3.20574,3119.4,3119.3,19.83840509]
[1720620631952,3.20574,3119.4,3119.3,19.89839057]
[1720620632121,3.20546,3119.7,3119.3,19.89839057]
[1720620632529,3.20565,3119.5,3119.3,19.89839057]
[1720620632826,3.20565,3119.5,3119.4,1.24595362]
[1720620633025,3.20565,3119.5,3119.4,1.30590972]
[1720620633575,3.2052,3120.0,3119.4,1.30590972]
[1720620633872,3.2052,3120.0,3119.4,0.0599561]
[1720620633873,3.20535,3119.8,3119.4,0.0599561]
[1720620634187,3.20535,3119.8,3119.0,23.04454509]
[1720620634341,3.20535,3119.8,3119.5,0.05988634]
[1720620634665,3.20535,3119.8,3119.6,0.05985472]
[1720620634878,3.20535,3119.8,3119.1,0.55]
[1720620635052,3.20535,3119.8,3119.7,0.05982311]
[1720620635233,3.20535,3119.8,3119.2,2.35945451]
[1720620635433,3.2052,3120.0,3119.3,0.60994958]
[1720620635963,3.20524,3119.9,3119.3,0.60994958]
[1720620636165,3.20498,3120.2,3119.4,2.3371]
[1720620636336,3.20498,3120.2,3119.5,0.84470496]
[1720620636537,3.20515,3120.0,3119.5,0.90460253]
[1720620637157,3.20526,3119.9,3119.5,0.90460253]
[1720620637357,3.20543,3119.7,3119.5,0.05989757]
[1720620637680,3.20553,3119.6,3119.5,0.05989757]
[1720620638280,3.20553,3119.6,3118.9,9.27255661]
[1720620638281,3.20586,3119.3,3118.9,6.93395661]
[1720620638459,3.20586,3119.3,3118.9,19.83840509]
[1720620639169,3.20607,3119.1,3118.7,21.43700662]
[1720620639571,3.20622,3119.0,3118.7,19.83840509]
[1720620640547,3.20633,3118.9,3118.7,19.83840509]
[1720620640974,3.792,3119.7,3118.3,19.83840509]
[1720620640975,3.20665,3118.6,3118.3,19.83840509]
[1720620641178,3.20665,3118.6,3118.1,6.93395661]
[1720620641179,3.20667,3118.5,3118.2,19.83840509]
[1720620641538,3.20687,3118.3,3118.2,19.83840509]
[1720620642161,3.28683944,3118.5,3117.5,12.16]
[1720620642162,3.20721,3118.0,3117.6,19.83840509]
[1720620642361,3.20721,3118.0,3117.7,2.35668701]
[1720620642953,6.20608,3119.1,3117.7,2.35668701]
[1720620643151,3.20555,3119.6,3117.7,2.35668701]
[1720620643152,3.20663,3118.6,3117.8,6.9792867]
[1720620643355,3.20555,3119.6,3117.8,6.9792867]
[1720620643356,3.2063,3118.9,3117.9,3.20721]
[1720620643675,3.20642,3118.8,3118.0,0.04531252]
[1720620643875,3.20642,3118.8,3118.1,0.32525225]
[1720620644280,5.54276,3119.8,3118.3,5.53106]
[1720620644492,3.20586,3119.3,3118.5,10.14060661]
[1720620644644,3.20586,3119.3,3118.6,0.55]
[1720620645185,3.20595,3119.2,3118.6,0.55]
[1720620645336,3.20595,3119.2,3118.7,0.74839566]
[1720620645545,3.20595,3119.2,3118.8,0.55]
[1720620649293,0.08015038,3119.3,3118.6,19.83840509]
[1720620649496,3.20643,3118.8,3118.6,19.83840509]
[1720620649826,6.41288,3118.8,3118.4,19.83840509]
[1720620650254,6.41288,3118.8,3118.4,22.00595332]
[1720620650765,3.20647,3118.7,3118.4,22.00595332]
[1720620651584,3.20663,3118.6,3118.4,19.83840509]
[1720620651993,3.20666,3118.5,3118.4,19.83840509]
[1720620652480,6.41332,3118.5,3118.4,19.83840509]
[1720620652848,6.91642473,3118.5,3118.4,19.83840509]
[1720620653046,6.91642473,3118.5,3118.4,19.89895131]
[1720620653283,3.70976473,3118.5,3118.4,19.89895131]
[1720620653667,6.91642473,3118.5,3118.4,19.89895131]
[1720620653875,10.12308473,3118.5,3118.4,0.06054622]
[1720620654073,10.12308473,3118.5,3117.7,19.83840509]
[1720620654074,3.20738,3117.8,3117.7,19.83840509]
[1720620654277,3.20738,3117.8,3117.7,0.06076775]
[1720620654588,3.20738,3117.8,3117.3,19.83840509]
[1720620654886,3.20738,3117.8,3117.3,23.05518381]
[1720620655107,3.20738,3117.8,3117.4,0.06086273]
[1720620655582,3.20738,3117.8,3117.3,23.05518381]
[1720620655792,3.20738,3117.8,3117.5,0.06083107]
[1720620655946,3.20738,3117.8,3117.4,0.61086273]
[1720620656177,3.20738,3117.8,3117.5,0.06083107]
[1720620656375,3.20738,3117.8,3117.4,3.76677872]
[1720620656575,6.41447,3118.0,3117.5,0.06083107]
[1720620656819,3.20736,3117.9,3117.4,3.76677872]
[1720620657018,3.20736,3117.9,3117.5,0.06083107]
[1720620657353,3.20736,3117.9,3117.4,3.76677872]
[1720620657511,3.20736,3117.9,3117.6,0.06079941]
[1720620657706,3.20736,3117.9,3117.5,0.06083107]
[1720620657911,3.2875478,3117.9,3117.7,0.06116069]
[1720620658110,3.2875478,3117.9,3117.6,0.06119459]
[1720620658111,3.20736,3117.9,3117.6,0.06119459]
[1720620658410,3.20738,3117.8,3117.7,0.06116294]
[1720620658615,3.20738,3117.8,3117.4,0.55]
[1720620658929,3.20738,3117.8,3117.5,0.06122625]
[1720620659216,3.20738,3117.8,3117.4,0.55]
[1720620659428,3.20738,3117.8,3117.5,0.05917475]
[1720620659629,3.2076,3117.6,3117.3,19.83840509]
[1720620659960,3.2076,3117.6,3117.4,0.0592154]
[1720620660243,3.1976,3117.6,3117.3,19.83840509]
[1720620660430,3.1976,3117.6,3117.4,0.05923112]
[1720620660636,3.1976,3117.6,3117.3,22.51564126]
[1720620661118,3.1976,3117.6,3117.4,0.05923336]
[1720620661631,3.1976,3117.6,3117.5,0.05924214]
[1720620662137,3.20749,3117.7,3117.5,0.05924214]
[1720620662337,3.20749,3117.7,3117.3,19.83840509]
[1720620662338,3.20759,3117.6,3117.3,19.83840509]
[1720620662505,3.20759,3117.6,3117.3,21.91152622]
[1720620663140,3.20734,3117.9,3117.3,21.91152622]
[1720620663306,1.285227,3121.5,3117.4,2.38917873]
[1720620663307,3.70980473,3118.5,3117.4,2.38917873]
[1720620663506,3.70980473,3118.5,3117.8,3.20737]
[1720620663507,0.50310473,3118.5,3117.8,3.20737]
[1720620663706,0.50310473,3118.5,3117.9,0.55]
[1720620663908,3.70977473,3118.5,3117.9,0.55]
[1720620664131,3.20677,3118.4,3117.8,0.55]
[1720620664346,0.50310473,3118.5,3117.8,0.55]
[1720620664641,0.50310473,3118.5,3117.7,3.7574]
[1720620664867,0.50310473,3118.5,3117.8,1.00102319]
[1720620665011,0.50310473,3118.5,3117.9,0.55]
[1720620665407,0.50310473,3118.5,3118.2,2.4246]
[1720620665651,0.50310473,3118.5,3118.3,0.55]
[1720620666030,0.50310473,3118.5,3118.2,22.26300509]
[1720620666031,0.50310473,3118.5,3118.2,19.83840509]
[1720620666229,3.20677,3118.4,3117.9,19.83840509]
[1720620666451,3.20703,3118.2,3117.9,19.83840509]
[1720620666747,6.41408,3118.2,3117.9,19.83840509]
[1720620667208,3.20715,3118.1,3117.9,19.83840509]
[1720620668167,3.20683,3118.4,3118.0,0.05899627]
[1720620668444,3.20694,3118.3,3118.0,0.05899627]
[1720620668653,0.50310473,3118.5,3117.9,19.83840509]
[1720620668654,3.70983473,3118.5,3117.9,19.83840509]
[1720620668861,3.20685,3118.4,3118.0,2.74211184]
[1720620669156,3.70983473,3118.5,3118.0,0.05897604]
[1720620669157,3.20687,3118.3,3118.0,0.05897604]
[1720620669650,3.20687,3118.3,3118.1,0.05894439]
[1720620670012,3.20687,3118.3,3117.9,19.83840509]
[1720620670346,3.20714,3118.1,3117.9,19.83840509]
[1720620670555,3.20714,3118.1,3118.0,0.0589693]
[1720620670960,3.20714,3118.1,3117.9,19.83840509]
[1720620671277,3.20688,3118.3,3118.0,2.58524786]
[1720620671455,3.2068,3118.4,3118.0,2.58524786]
[1720620674466,3.20708,3118.1,3118.0,0.05898277]
[1720620674664,3.20708,3118.1,3117.9,19.83840509]
[1720620674864,3.20708,3118.1,3118.0,0.05894909]
[1720620675172,3.20708,3118.1,3117.9,19.83840509]
[1720620675467,3.20708,3118.1,3118.0,0.05896481]
[1720620675763,3.20708,3118.1,3117.9,19.83840509]
[1720620675967,3.20708,3118.1,3118.0,0.05896705]
[1720620676373,3.20708,3118.1,3117.9,19.83840509]
[1720620676576,3.20698,3118.2,3117.9,19.83840509]
[1720620676577,6.41436,3118.0,3117.9,19.83840509]
[1720620677146,6.41436,3118.0,3117.0,26.7723617]
[1720620677384,3.20782,3117.4,3117.0,6.93395661]
[1720620677531,0.50310473,3118.5,3117.1,2.32020197]
[1720620677733,0.50310473,3118.5,3117.9,3.2072]
[1720620677992,0.50310473,3118.5,3118.4,3.20677]
[1720620679044,0.50310473,3118.5,3118.4,0.55]
[1720620679435,0.50310473,3118.5,3118.2,3.55]
[1720620679664,0.50310473,3118.5,3118.3,0.996398]
[1720620679841,0.50310473,3118.5,3118.4,0.55]
[1720620681149,0.50310473,3118.5,3118.4,3.75677]
[1720620681787,0.50310473,3118.5,3118.4,0.55]
[1720620682236,0.50310473,3118.5,3118.3,0.996398]
[1720620682437,0.50310473,3118.5,3118.2,19.83840509]
[1720620682841,0.50310473,3118.5,3117.7,3.20749]
[1720620682842,3.20689,3118.3,3117.7,19.83840509]
[1720620683353,3.20709,3118.1,3117.7,19.83840509]
[1720620683562,3.20731,3117.9,3117.7,19.83840509]
[1720620683763,3.70980473,3118.5,3117.0,1.40625043]
[1720620683764,2.3691,3118.4,3117.0,1.40625043]
[1720620683963,2.3691,3118.4,3116.9,6.93395661]
[1720620683964,3.20778,3117.5,3116.9,6.93395661]
[1720620684171,3.20778,3117.5,3117.0,2.67723617]
[1720620684172,3.20781,3117.4,3117.0,2.67723617]
[1720620684485,3.20781,3117.4,3116.8,19.83840509]
[1720620685234,3.2079,3117.3,3116.8,19.83840509]
[1720620685458,3.20781,3117.4,3116.8,19.83840509]
[1720620685780,3.20801,3117.2,3116.8,19.83840509]
[1720620686884,3.20785,3117.4,3116.8,19.83840509]
[1720620687074,3.208,3117.3,3116.9,1.98384051]
[1720620687377,3.20802,3117.2,3116.6,26.7723617]
[1720620688083,3.20822,3117.0,3116.3,26.7723617]
[1720620688252,3.20833,3116.9,3116.3,26.7723617]
[1720620688586,3.20858,3116.7,3116.3,26.7723617]
[1720620688792,6.41816,3116.2,3115.8,6.93395661]
[1720620689305,3.20807,3117.2,3115.4,31.99840509]
[1720620689306,3.20947,3115.8,3115.4,19.83840509]
[1720620689444,3.20947,3115.8,3115.3,2.88262805]
[1720620690387,3.20984,3115.5,3115.3,2.88262805]
[1720620691056,3.20935,3115.9,3115.3,2.88262805]
[1720620691261,3.20914,3116.1,3115.3,2.88262805]
[1720620691570,3.20984,3115.5,3115.3,2.88262805]
[1720620692145,3.20986,3115.4,3115.3,2.88262805]
[1720620693307,6.41972,3115.4,3115.3,2.88262805]
[1720620693648,3.20986,3115.4,3115.3,2.88262805]
[1720620694089,6.41972,3115.4,3115.3,2.88262805]
[1720620694296,3.20986,3115.4,3115.3,2.88262805]
[1720620694711,6.41972,3115.4,3115.3,2.88262805]
[1720620695266,9.62958,3115.4,3115.3,2.88262805]
[1720620695815,12.62958,3115.4,3115.3,2.88262805]
[1720620696115,12.62958,3115.4,3115.3,0.1120104]
[1720620696116,14.94128,3115.4,3115.3,0.1120104]
[1720620696985,14.94128,3115.4,3114.5,6.93395661]
[1720620696986,6.42136,3114.6,3114.5,6.93395661]
[1720620697186,6.42136,3114.6,3114.4,19.83840509]
[1720620697187,3.21078,3114.5,3114.4,19.83840509]
[1720620697866,3.21078,3114.5,3114.4,19.89405298]
[1720620699196,3.21068,3114.6,3114.4,19.89405298]
[1720620699374,3.21078,3114.5,3114.4,19.89405298]
[1720620699562,6.42156,3114.5,3114.4,0.05564789]
[1720620699993,6.792,3115.0,3113.5,26.7723617]
[1720620699994,3.792,3114.6,3113.5,26.7723617]
[1720620700212,3.792,3114.6,3113.5,6.93395661]
[1720620700213,3.21133,3114.0,3113.5,6.93395661]
[1720620700359,3.21142,3113.9,3113.6,0.05598051]
[1720620700987,3.21142,3113.9,3113.3,19.83840509]
[1720620701196,3.21142,3113.9,3113.7,0.05632457]
[1720620701408,3.21142,3113.9,3113.3,19.83840509]
[1720620702237,3.21142,3113.9,3113.4,0.05641979]
[1720620702401,0.08029814,3113.8,3113.4,0.05641979]
[1720620702733,3.21142,3113.9,3113.4,0.05641979]
[1720620702948,3.21086,3114.5,3113.4,2.04590228]
[1720620703101,3.21086,3114.5,3113.6,3.21171]
[1720620703423,3.21109,3114.2,3113.7,0.05451807]
[1720620703639,3.21132,3114.0,3113.7,0.05451807]
[1720620703799,3.21132,3114.0,3113.3,19.83840509]
[1720620703997,3.21132,3114.0,3113.8,0.05448634]
[1720620704217,3.21132,3114.0,3113.3,19.83840509]
[1720620704381,3.21132,3114.0,3113.9,0.05445461]
[1720620704719,3.21132,3114.0,3113.3,19.83840509]
[1720620704720,3.2115,3113.9,3113.3,19.83840509]
[1720620704933,0.08029877,3113.8,3113.4,0.05461329]
[1720620705087,3.21178,3113.6,3113.1,6.93395661]
[1720620705281,3.21202,3113.3,3113.2,0.05111855]
[1720620705492,2.2928,3114.1,3113.2,0.05111855]
[1720620705784,3.21176,3113.6,3112.7,6.93395661]
[1720620705979,3.21176,3113.6,3113.3,0.0510868]
[1720620706207,3.21182,3113.5,3112.7,6.93395661]
[1720620706411,3.21199,3113.4,3112.7,6.93395661]
[1720620706732,3.21198,3113.4,3112.8,0.05124555]
[1720620707089,6.42399,3113.4,3112.8,0.05124555]
[1720620707323,3.21202,3113.3,3112.8,0.05124555]
[1720620707549,3.21243,3112.9,3112.3,19.83840509]
[1720620707687,3.21243,3112.9,3111.8,14.492]
[1720620707688,3.792,3112.9,3111.9,19.83840509]
[1720620707891,3.21293,3112.5,3112.3,0.04977582]
[1720620708202,3.792,3112.9,3111.2,6.93395661]
[1720620708423,6.4261,3112.3,3111.2,6.93395661]
[1720620708621,3.21305,3112.3,3111.2,6.93395661]
[1720620709008,3.21279,3112.6,3111.2,10.14807661]
[1720620709339,3.0,3112.5,3111.5,3.21387]
[1720620709518,3.0,3112.5,3111.7,6.93395661]
[1720620709724,3.2127,3112.7,3111.7,6.93395661]
[1720620709930,3.0,3112.6,3111.7,6.93395661]
[1720620710355,6.21275,3112.6,3111.7,6.93395661]
[1720620710663,3.29960284,3117.6,3111.7,6.93395661]
[1720620710664,3.21223,3113.1,3112.3,0.55]
[1720620711008,3.21253,3112.9,3112.2,0.1120104]
[1720620711204,3.21294,3112.5,3112.2,0.1120104]
[1720620711402,3.21267,3112.7,3112.2,0.1120104]
[1720620711955,3.0,3113.2,3112.4,3.21291]
[1720620712118,3.21193,3113.4,3112.4,3.54540204]
[1720620712439,3.0,3113.5,3112.2,0.1120104]
[1720620712440,3.2125,3112.9,3112.2,0.1120104]
[1720620712687,3.21282,3112.6,3112.2,7.04596701]
[1720620712860,3.21285,3112.5,3112.2,7.04596701]
[1720620713163,3.21285,3112.5,3112.3,0.04700458]
[1720620713304,3.71693298,3112.6,3112.3,0.04700458]
[1720620713305,6.4259,3112.4,3112.3,0.04700458]
[1720620713507,12.63885,3112.4,3112.2,0.1120104]
[1720620713734,12.93255279,3112.3,3112.2,0.1120104]
[1720620713943,12.93255279,3112.3,3111.1,19.09395661]
[1720620713944,0.3921353,3111.2,3111.1,19.09395661]
[1720620714102,3.792,3111.9,3110.5,19.83840509]
[1720620714307,3.21381,3111.6,3110.6,6.47729927]
[1720620714503,3.21388,3111.5,3110.6,3.26052055]
[1720620714722,3.21421,3111.2,3110.4,9.25595661]
[1720620714937,3.0,3111.8,3110.4,9.25595661]
[1720620714938,0.08036661,3111.1,3110.4,9.25595661]
[1720620715160,3.2143,3111.1,3110.4,9.25595661]
[1720620715549,3.21441,3111.0,3110.4,6.93395661]
[1720620716126,3.21476,3110.7,3110.2,19.83840509]
[1720620716830,3.21452,3110.9,3110.2,19.83840509]
[1720620717017,3.21433,3111.1,3110.2,20.22380886]
[1720620717218,3.0,3111.0,3110.2,20.22380886]
[1720620718760,3.2147,3110.8,3110.2,19.83840509]
[1720620719059,3.0,3111.0,3110.2,19.83840509]
[1720620719060,3.21491,3110.6,3110.2,19.83840509]
[1720620719259,3.21491,3110.5,3110.2,19.83840509]
[1720620719462,6.21425,3111.2,3109.1,7.04596701]
[1720620719679,3.21584,3109.6,3109.5,6.93395661]
[1720620719980,0.33196478,3110.4,3109.5,0.69339566]
[1720620720176,3.2145,3110.9,3109.6,5.7270047]
[1720620720379,3.21463,3110.8,3109.8,3.21556]
[1720620720686,3.2145,3110.9,3109.8,3.21556]
[1720620720837,3.21434,3111.1,3109.9,3.21551]
[1720620721042,3.21456,3110.9,3109.9,10.14946661]
[1720620721244,3.21401,3111.4,3110.2,3.21522]
[1720620721480,3.2143,3111.1,3110.2,3.21522]
[1720620721898,3.2143,3111.1,3110.0,4.55186266]
[1720620721899,3.792,3111.5,3110.0,1.33650266]
[1720620722187,3.21514,3110.3,3109.9,6.93395661]
[1720620722396,3.21557,3109.9,3109.7,19.83840509]
[1720620722595,7.00675,3110.7,3109.7,19.83840509]
[1720620722757,3.0,3110.6,3109.7,23.05412509]
[1720620722945,3.21462,3110.8,3109.8,4.73391251]
[1720620723298,3.21462,3110.8,3109.9,3.21553]
[1720620723445,3.21456,3110.9,3109.9,3.21553]
[1720620723788,6.21469,3110.8,3109.8,2.30541251]
[1720620724017,3.21483,3110.6,3109.8,2.30541251]
[1720620724161,6.21469,3110.8,3109.7,19.83840509]
[1720620724162,3.29532875,3110.5,3109.7,19.83840509]
[1720620724499,3.21513,3110.3,3109.7,19.83840509]
[1720620724780,0.08038875,3110.5,3109.7,19.83840509]
[1720620724781,3.21562,3109.9,3109.7,19.83840509]
[1720620725239,3.21564,3109.8,3109.7,19.83840509]
[1720620725444,3.21598,3109.5,3109.1,0.1120104]
[1720620725681,3.29653456,3109.4,3109.1,0.1120104]
[1720620725879,3.21618,3109.3,3109.1,0.1120104]
[1720620726044,0.08042176,3109.2,3109.1,0.1120104]
[1720620726243,3.21618,3109.3,3109.1,0.1120104]
[1720620726445,3.21626,3109.2,3109.1,0.1120104]
[1720620726681,6.51294171,3109.2,3109.1,0.1120104]
[1720620727000,6.51294171,3109.2,3108.1,6.93395661]
[1720620727001,3.08042171,3109.2,3108.1,6.93395661]
[1720620727147,3.2172,3108.3,3107.8,6.93395661]
[1720620727344,3.21746,3108.1,3107.9,0.04409403]
[1720620727672,3.2172,3108.3,3107.3,6.93395661]
[1720620727885,3.2172,3108.3,3107.3,9.93302678]
[1720620727886,3.21742,3108.1,3107.3,9.93302678]
[1720620728084,3.2172,3108.3,3107.4,0.04696284]
[1720620728085,6.43447,3108.3,3107.4,0.04696284]
[1720620728246,3.0,3108.0,3107.4,0.04696284]
[1720620728446,3.0,3108.2,3107.4,0.04696284]
[1720620728684,3.792,3108.5,3107.5,3.21795]
[1720620728685,3.21699,3108.5,3107.5,3.21795]
[1720620728988,3.21685,3108.7,3107.6,0.38380386]
[1720620728989,3.21686,3108.7,3107.6,0.38380386]
[1720620729187,3.0,3108.6,3107.6,0.38380386]
[1720620729386,3.21622,3109.3,3107.6,0.05271371]
[1720620729387,0.08044373,3108.5,3107.6,0.05271371]
[1720620729707,3.21741,3108.1,3107.6,0.05271371]
[1720620729846,0.08045157,3108.0,3107.3,6.93395661]
[1720620730046,6.43546,3107.8,3107.7,0.05265397]
[1720620730309,3.21813,3107.4,3107.1,19.83840509]
[1720620730505,3.21796,3107.6,3106.6,38.9323617]
[1720620730779,6.2176,3108.0,3106.7,6.48164084]
[1720620731018,3.21791,3107.6,3106.7,6.43560872]
[1720620731148,3.0,3108.0,3106.7,3.21677872]
[1720620731457,3.0,3108.0,3106.6,38.9323617]
[1720620731458,3.21799,3107.6,3106.6,38.9323617]
[1720620731663,0.08045515,3107.9,3106.1,12.16]
[1720620731664,2.3659,3107.3,3106.1,12.16]
[1720620731995,2.3659,3107.3,3103.4,41.20905352]
[1720620731996,1.5,3106.7,3104.7,7.47]
[1720620732216,0.88334649,3108.5,3100.6,3.22508]
[1720620732217,0.50514527,3102.7,3100.6,3.22508]
[1720620732364,0.50514527,3102.7,3099.7,1.608864]
[1720620732365,0.50514527,3102.7,3101.5,3.22424]
[1720620732544,0.50514527,3102.7,3101.6,0.38310194]
[1720620732897,1.81072428,3104.9,3102.0,1.59860153]
[1720620733104,0.08055827,3104.8,3102.2,1.5]
[1720620733246,1.47587225,3104.9,3102.4,3.22321]
[1720620733247,3.30134027,3104.9,3102.4,3.22321]
[1720620733448,3.0,3105.4,3103.3,3.22231]
[1720620733685,3.22091,3104.8,3103.2,3.22246]
[1720620733853,3.22125,3104.4,3103.3,0.322246]
[1720620734055,3.22125,3104.4,3102.7,3.22297]
[1720620734256,3.22125,3104.4,3102.0,1.59860153]
[1720620734257,5.414,3105.4,3102.3,3.22337]
[1720620734477,3.22175,3103.9,3102.3,3.2234]
[1720620734706,3.22175,3103.9,3102.4,3.22325]
[1720620734881,3.22175,3103.9,3102.5,2.2516]
[1720620735042,3.22175,3103.9,3102.6,0.547485]
[1720620735243,3.0,3104.2,3102.6,0.547485]
[1720620735244,0.06652181,3103.8,3102.6,0.547485]
[1720620735466,0.06652181,3103.8,3101.4,1.5]
[1720620735467,3.22278,3103.0,3101.2,3.22447]
[1720620735698,3.22265,3103.1,3101.7,3.22395]